{"text_format":"1","workbook":"xlsx","n_sheets":1,"sheets":["Teilnahme-Liste"],"not_rendered":{"charts":0,"images":1,"macros":1,"external_links":0,"defined_names":3,"comments":0,"pivot_tables":0},"unopened":[],"bounds":{"document_bytes":16777216,"sheet_cells":100000,"rows_first":2000,"rows_last":500,"rows_between":2000,"halvings":0,"cell_chars":16384,"cell_head_chars":4096},"cells_cut":0,"cells_raw":0,"read":"whole","date_system":"1900"}

{"sheet":"Teilnahme-Liste","index":0,"n_rows":66,"n_cols":17,"rows_kept":66,"cut":false,"hidden":false,"merged":[[0,1,0,4],[3,5,3,6],[0,8,0,9],[9,14,11,14],[8,5,8,8],[5,5,7,7],[1,1,1,8],[10,16,11,16],[10,15,11,15],[9,15,9,16],[63,2,63,11],[9,2,11,2],[47,1,57,10],[9,1,11,1],[9,3,11,3]]}
[]
[null,"ANLAGE - Teilnehmenden-/Qualifizierungsplan"]
[null,null,"Stammdaten:"]
[null,null,"Antrags-Nr. (falls bereits bekannt):"]
[null,null,"Name des Unternehmens/Vereins/Trägers KJH:"]
[]
[]
[]
[null,null,null,"Bitte ergämnzen Sie erst die Zeile und dann die Spalten."]
[null,"Zahl der Teilnehmenden","Personalnummer des/der Teilnehmenden","Tätigkeit im Unternehmen/Verein","Qualifizierung 1\n\n\n (Zeitraum/Thema/\nAusgaben pro TN)","Qualifizierung 2 \n\n\n(Zeitraum/Thema/\nAusgaben pro TN)","Qualifizierung 3 \n\n\n(Zeitraum/Thema/\nAusgaben pro TN)","Qualifizierung 4\n\n\n (Zeitraum/Thema/\nAusgaben pro TN)","Qualifizierung 5 \n\n\n(Zeitraum/Thema/\nAusgaben pro TN)","Qualifizierung 6 \n\n\n(Zeitraum/Thema/\nAusgaben pro TN)","Qualifizierung 7 \n\n\n(Zeitraum/Thema/\nAusgaben pro TN)","Qualifizierung 8\n\n\n (Zeitraum/Thema/\nAusgaben pro TN)","Qualifizierung 9 \n\n\n(Zeitraum/Thema/\nAusgaben pro TN)","Qualifizierung 10\n\n\n (Zeitraum/Thema/\nAusgaben pro TN)","Gesamt-Ausgaben pro TN","Finanzierung"]
[null,null,null,null,null,null,null,null,null,null,null,null,null,null,null,"Fördermittel ","Eigenmittel "]
[]
[null,{"$f":"IF(C13<>\"\",1,0)","v":0},null,null,null,null,null,null,null,null,null,null,null,null,{"$f":"SUM(E13:N13)","v":0},{"$f":"O13*0.5","v":0},{"$f":"O13-P13","v":0}]
[null,{"$f":"IF(C14<>\"\",B13+1,0)","v":0},null,null,null,null,null,null,null,null,null,null,null,null,0,{"$f":"O14*0.5","v":0},{"$f":"O14-P14","v":0}]
[null,{"$f":"IF(C15<>\"\",B14+1,0)","v":0},null,null,null,null,null,null,null,null,null,null,null,null,0,0,0]
[null,0,null,null,null,null,null,null,null,null,null,null,null,null,0,0,0]
[null,0,null,null,null,null,null,null,null,null,null,null,null,null,0,0,0]
[null,{"$f":"IF(C18<>\"\",1,0)","v":0},null,null,null,null,null,null,null,null,null,null,null,null,{"$f":"SUM(E18:N18)","v":0},{"$f":"O18*0.5","v":0},{"$f":"O18-P18","v":0}]
[null,{"$f":"IF(C19<>\"\",B18+1,0)","v":0},null,null,null,null,null,null,null,null,null,null,null,null,0,{"$f":"O19*0.5","v":0},{"$f":"O19-P19","v":0}]
[null,{"$f":"IF(C20<>\"\",B19+1,0)","v":0},null,null,null,null,null,null,null,null,null,null,null,null,0,0,0]
[null,0,null,null,null,null,null,null,null,null,null,null,null,null,0,0,0]
[null,0,null,null,null,null,null,null,null,null,null,null,null,null,0,0,0]
[null,0,null,null,null,null,null,null,null,null,null,null,null,null,0,0,0]
[null,0,null,null,null,null,null,null,null,null,null,null,null,null,0,0,0]
[null,0,null,null,null,null,null,null,null,null,null,null,null,null,0,0,0]
[null,0,null,null,null,null,null,null,null,null,null,null,null,null,0,0,0]
[null,0,null,null,null,null,null,null,null,null,null,null,null,null,0,0,0]
[null,0,null,null,null,null,null,null,null,null,null,null,null,null,0,0,0]
[null,{"$f":"IF(C29<>\"\",1,0)","v":0},null,null,null,null,null,null,null,null,null,null,null,null,{"$f":"SUM(E29:N29)","v":0},{"$f":"O29*0.5","v":0},{"$f":"O29-P29","v":0}]
[null,{"$f":"IF(C30<>\"\",B29+1,0)","v":0},null,null,null,null,null,null,null,null,null,null,null,null,0,{"$f":"O30*0.5","v":0},{"$f":"O30-P30","v":0}]
[null,{"$f":"IF(C31<>\"\",B30+1,0)","v":0},null,null,null,null,null,null,null,null,null,null,null,null,0,0,0]
[null,0,null,null,null,null,null,null,null,null,null,null,null,null,0,0,0]
[null,0,null,null,null,null,null,null,null,null,null,null,null,null,0,0,0]
[null,0,null,null,null,null,null,null,null,null,null,null,null,null,0,0,0]
[null,0,null,null,null,null,null,null,null,null,null,null,null,null,0,0,0]
[null,0,null,null,null,null,null,null,null,null,null,null,null,null,0,0,0]
[null,0,null,null,null,null,null,null,null,null,null,null,null,null,0,0,0]
[null,0,null,null,null,null,null,null,null,null,null,null,null,null,0,0,0]
[null,0,null,null,null,null,null,null,null,null,null,null,null,null,0,0,0]
[null,0,null,null,null,null,null,null,null,null,null,null,null,null,0,0,0]
[null,{"$f":"IF(C41<>\"\",B40+1,0)","v":0},null,null,null,null,null,null,null,null,null,null,null,null,0,0,0]
[null,{"$f":"IF(C42<>\"\",B41+1,0)","v":0},null,null,null,null,null,null,null,null,null,null,null,null,0,0,{"$f":"O42-P42","v":0}]
[null,{"$f":"IF(C43<>\"\",B42+1,0)","v":0},null,null,null,null,null,null,null,null,null,null,null,null,{"$f":"SUM(E43:N43)","v":0},0,{"$f":"O43-P43","v":0}]
[null,0,null,null,null,null,null,null,null,null,null,null,null,null,0,0,0]
[null,null,"Summe:",null,{"$f":"SUM(E29:E44)","v":0},0,0,0,0,0,0,0,0,0,0,0,0]
[]
[]
[]
[]
[]
[]
[]
[]
[]
[]
[]
[]
[]
[]
[]
[]
[]
[]
[]
[]
[null,null,"kleines Untern./Verein/Träger KJH","mittleres Untern./Verein/Träger KJH","großes Untern./Verein/Träger KJH","nicht wirtschaftlich tätiger Verein"]